fUSD/lending_fUSD_20250206
["ID","MTS","AMOUNT","RATE_DAILY","PERIOD"]
[351912971,1738839039579,-500.0,0.0001984,2]
[351912973,1738839039588,-500.0,0.0001984,2]
[351912975,1738839039598,-150.0,0.00019849,2]
[351912977,1738839039608,-528.16,0.00019864,30]
[351912979,1738839039617,-150.0,0.00019867,2]
[351912981,1738839039626,-150.0,0.00019869,2]
[351912983,1738839039635,-3004.45451337,0.0001987,2]
[351912985,1738839039644,-225.6232104,0.00019873,2]
[351912987,1738839039653,-153.75922793,0.00019873,2]
[351912989,1738839039663,-179.62507921,0.00019873,2]
[351912991,1738839039672,-162.11028443,0.00019873,2]
[351912993,1738839039681,-1449.87120908,0.00019879,5]
[351912995,1738839039692,-1125.25662742,0.00019879,5]
[351912997,1738839039701,-1125.25662743,0.00019879,5]
[351912999,1738839039711,-18148.72529492,0.00019879,2]
[351913001,1738839039720,-1057.9,0.00019879,2]
[351913003,1738839039730,-38774.46622786,0.0001988,2]
[351913006,1738839039740,-969.0,0.0001988,2]
[351913008,1738839039749,-1000000.0,0.0001988,2]
[351913010,1738839039759,-151.0,0.0001988,2]
[351913012,1738839039768,-151.0,0.0001988,2]
[351913014,1738839039778,-2965.442484,0.0001988,2]
[351913016,1738839039787,-2965.442484,0.0001988,2]
[351913018,1738839039799,-223.022493,0.0001988,2]
[351913020,1738839039808,-223.022493,0.0001988,2]
[351913022,1738839039817,-1000.0,0.00019887,2]
[351913024,1738839039827,-298.84457,0.00019888,7]
[351913026,1738839039836,-150.0,0.00019894,2]
[351913028,1738839039846,-150.0,0.00019897,2]
[351913030,1738839039855,-10957.43935874,0.000199,5]
[351913032,1738839039864,-4695.84698975,0.000199,3]
[351913034,1738839039873,-234231.39460043,0.000199,7]
[351913073,1738839040250,-3.73879433,0.000199,7]
[351913077,1738839040278,-817.98500001,0.000199,7]
[351913079,1738839040289,-1485.04,0.000199,7]
[351913383,1738839043092,-180.45539977,0.00015141,2]
[351913385,1738839043101,-1108.0,0.00019735,2]
[351913387,1738839043111,-98765.84160523,0.000199,7]
[351913389,1738839043121,-193.78574166,0.000199,10]
[351913391,1738839043131,-369.91962606,0.000199,2]
[351913393,1738839043140,-369.91962606,0.000199,2]
[351913395,1738839043149,-369.91962606,0.000199,2]
[351913396,1738839043159,-369.91962606,0.000199,2]
[351913398,1738839043168,-369.91962606,0.000199,2]
[351913401,1738839043178,-369.91962606,0.000199,2]
[351913403,1738839043190,-369.91962606,0.000199,2]
[351913404,1738839043200,-369.91962606,0.000199,2]
[351913406,1738839043209,-369.91962606,0.000199,2]
[351913408,1738839043219,-369.91962606,0.000199,2]
[351913411,1738839043229,-369.91962606,0.000199,2]
[351913413,1738839043238,-369.91962606,0.000199,2]
[351913414,1738839043247,-369.91962606,0.000199,2]
[351913416,1738839043256,-369.91962606,0.000199,2]
[351913418,1738839043265,-369.91962606,0.000199,2]
[351913421,1738839043276,-369.91962606,0.000199,2]
[351913423,1738839043286,-369.91962606,0.000199,2]
[351913425,1738839043296,-369.91962606,0.000199,2]
[351913426,1738839043305,-369.91962606,0.000199,2]
[351913428,1738839043314,-369.91,0.000199,2]
[351913430,1738839043323,-371.04547597,0.000199,2]
[351913432,1738839043333,-371.04547597,0.000199,2]
[351913434,1738839043342,-371.04547597,0.000199,2]
[351913436,1738839043351,-371.04547597,0.000199,2]
[351913438,1738839043360,-371.04547597,0.000199,2]
[351913440,1738839043369,-371.04547597,0.000199,2]
[351913442,1738839043379,-371.04547597,0.000199,2]
[351913445,1738839043394,-371.04547597,0.000199,2]
[351913447,1738839043405,-371.04547597,0.000199,2]
[351913449,1738839043419,-371.04547597,0.000199,2]
[351913451,1738839043430,-371.04547597,0.000199,2]
[351913453,1738839043447,-371.04547597,0.000199,2]
[351913455,1738839043458,-371.04547597,0.000199,2]
[351913457,1738839043469,-371.04547597,0.000199,2]
[351913460,1738839043479,-371.04547597,0.000199,2]
[351913463,1738839043490,-371.04547597,0.000199,2]
[351913466,1738839043500,-371.04547597,0.000199,2]
[351913468,1738839043511,-371.04547597,0.000199,2]
[351913470,1738839043522,-371.04547597,0.000199,2]
[351913472,1738839043532,-371.04,0.000199,2]
[351913474,1738839043542,-429.48931797,0.000199,2]
[351913476,1738839043552,-429.48931797,0.000199,2]
[351913478,1738839043562,-429.48931797,0.000199,2]
[351913480,1738839043572,-429.48931797,0.000199,2]
[351913482,1738839043582,-429.48931797,0.000199,2]
[351913484,1738839043592,-429.48931797,0.000199,2]
[351913486,1738839043601,-429.48931797,0.000199,2]
[351913488,1738839043611,-429.48931797,0.000199,2]
[351913490,1738839043621,-429.48931797,0.000199,2]
[351913492,1738839043630,-429.48931797,0.000199,2]
[351913494,1738839043640,-429.48931797,0.000199,2]
[351913496,1738839043650,-429.48931797,0.000199,2]
[351913498,1738839043659,-429.48931797,0.000199,2]
[351913500,1738839043669,-429.48931797,0.000199,2]
[351913502,1738839043679,-429.48931797,0.000199,2]
[351913505,1738839043691,-429.48931797,0.000199,2]
[351913507,1738839043701,-429.48931797,0.000199,2]
[351913509,1738839043710,-429.48931797,0.000199,2]
[351913511,1738839043720,-429.48931797,0.000199,2]
[351913513,1738839043730,-429.48,0.000199,2]
[351913515,1738839043740,-151.0,0.000199,2]
[351913517,1738839043749,-220.961458,0.000199,2]
[351913519,1738839043759,-151.0,0.000199,2]
[351913521,1738839043769,-151.0,0.000199,2]
[351913523,1738839043780,-179.18414599,0.000199,2]
[351913525,1738839043792,-151.0,0.000199,2]
[351913527,1738839043801,-151.0,0.000199,2]
[351913529,1738839043811,-151.0,0.000199,2]
[351913531,1738839043820,-151.0,0.000199,2]
[351913533,1738839043830,-151.0,0.000199,2]
[351913535,1738839043839,-151.0,0.000199,2]
[351913537,1738839043849,-5900.0,0.000199,7]
[351913539,1738839043859,-2965.442484,0.000199,2]
[351913541,1738839043868,-2965.442484,0.000199,2]
[351913543,1738839043878,-223.022493,0.000199,2]
[351913545,1738839043887,-257.06169505,0.000199,2]
[351913547,1738839043896,-223.022493,0.000199,2]
[351913549,1738839043906,-961.20024965,0.000199,2]
[351913551,1738839043916,-150.0,0.00019915,2]
[351913553,1738839043926,-514.0,0.0001997,2]
[351913555,1738839043936,-500.0,0.00019973,2]
[351913557,1738839043948,-155.94,0.00019977,2]
[351913559,1738839043958,-150.0,0.00019979,2]
[351913561,1738839043967,-1000.0,0.00019981,2]
[351913563,1738839043977,-188.05608793,0.00019989,2]
[351913565,1738839043986,-3085.26765716,0.0001999,2]
[351913567,1738839043996,-1008.99495767,0.00019999,5]
[351913569,1738839044006,-250000.0,0.00019999,2]
[351913571,1738839044015,-2000.0,0.00019999,2]
[351913573,1738839044025,-2009.2476,0.00019999,2]
[351913575,1738839044035,-2000.0,0.00019999,2]
[351913577,1738839044044,-151.0,0.00019999,2]
[351913579,1738839044053,-1000.0,0.00019999,2]
[351913581,1738839044063,-151.0,0.00019999,2]
[351913583,1738839044073,-151.0,0.00019999,2]
[351913585,1738839044083,-151.0,0.00019999,2]
[351913587,1738839044093,-151.0,0.00019999,2]
[351913589,1738839044102,-151.0,0.00019999,2]
[351913591,1738839044112,-151.0,0.00019999,2]
[351913593,1738839044121,-500.0,0.00019999,2]
[351913595,1738839044131,-151.0,0.00019999,2]
[351913597,1738839044140,-151.0,0.00019999,2]
[351913599,1738839044150,-2965.442484,0.00019999,2]
[351913601,1738839044159,-2965.442484,0.00019999,2]
[351913603,1738839044169,-223.022493,0.00019999,2]
[351913605,1738839044179,-223.022493,0.00019999,2]
[351913607,1738839044190,-266.88630887,0.0002,2]
[351913609,1738839044201,-87161.68144849,0.0002,2]
[351913787,1738839045936,-454.52921076,0.000192,3]
[351913789,1738839045946,-867.0,0.0002,2]
[351913791,1738839045955,-5950.4912143,0.0002,2]
[351913793,1738839045966,-4946.1,0.0002,2]
[351913825,1738839046270,-180.62189578,0.000192,2]
[351913827,1738839046280,-2544.44597312,0.0002,2]
[351913829,1738839046291,-4629.25369949,0.0002,2]
[351914119,1738839161543,1069.8025,8.836e-05,2]
[351914122,1738839685213,487.0,0.0002,120]
[351914123,1738839978290,429.68741984,0.0002,120]
[351914124,1738839999019,500.0,0.0002,120]
[351914125,1738840005400,500.0,0.0002,120]
[351914126,1738840011756,500.0,0.0002,120]
[351914152,1738840232083,-300.0,9.88e-05,2]
[351914153,1738840232093,-175.118129,9.881e-05,2]
[351914154,1738840232103,-171.274272,9.881e-05,2]
[351914155,1738840232112,-156.348529,9.881e-05,2]
[351914156,1738840232122,-1517.7796849,9.881e-05,10]
[351914157,1738840232132,-175.118129,9.881e-05,2]
[351914158,1738840232142,-171.274272,9.881e-05,2]
[351914159,1738840232152,-153.337496,9.881e-05,2]
[351914160,1738840232161,-153.894785,9.881e-05,2]
[351914161,1738840232170,-180.45539977,9.881e-05,2]
[351914162,1738840232180,-3520.9796046,9.881e-05,2]
[351914163,1738840232190,-153.337496,0.00010155,2]
[351914164,1738840232199,-153.894785,0.00010155,2]
[351914165,1738840232211,-153.894785,0.00010429,2]
[351914166,1738840232220,-153.337496,0.00010566,2]
[351914167,1738840232230,-175.118129,0.0001084,2]
[351914168,1738840232239,-171.274272,0.0001084,2]
[351914169,1738840232249,-175.118129,0.0001084,2]
[351914170,1738840232258,-171.274272,0.0001084,2]
[351914171,1738840232268,-153.337496,0.0001084,2]
[351914172,1738840232277,-153.894785,0.0001084,2]
[351914173,1738840232286,-500.0,0.00010869,2]
[351914174,1738840232296,-500.0,0.00010869,2]
[351914175,1738840232305,-153.894785,0.00011114,2]
[351914176,1738840232314,-153.337496,0.00011251,2]
[351914177,1738840232323,-153.894785,0.00011388,2]
[351914178,1738840232333,-250.0,0.00013056,2]
[351914179,1738840232343,-383.6274938,0.00013148,2]
[351914180,1738840232352,-56.96856443,0.00015391,2]
[351914181,1738840232380,-649.79143557,0.00015391,2]
[351914182,1738840232389,-372.23,0.00015589,2]
[351914183,1738840232400,-376.09,0.00015608,2]
[351914185,1738840232409,-373.9,0.00015641,2]
[351914187,1738840232419,-372.49,0.00015696,2]
[351914189,1738840232429,-376.69,0.00015786,2]
[351914191,1738840232437,-220.34,0.00016712,2]
[351914193,1738840232446,-2454.89397056,0.00017,2]
[351914196,1738840232464,-357.680135,0.00017,2]
[351914199,1738840232483,-2360.42589444,0.00017,2]
[351914201,1738840232493,-200.0,0.00017076,2]
[351914203,1738840232505,-62.55908361,0.00017107,2]
[351914205,1738840232522,-231.67017079,0.00017107,2]
[351914207,1738840232538,-698.41,0.00017172,2]
[351914209,1738840232553,-200.0,0.00017284,2]
[351914211,1738840232564,-435.43583236,0.00017326,2]
[351914216,1738840232590,-350.51416764,0.00017326,2]
[351914218,1738840232599,-104.41112455,0.00017337,2]
[351914369,1738840237937,-145.58887545,0.00017337,2]
[351914370,1738840237947,-1000.0,0.00017447,2]
[351914371,1738840237959,-142.17812455,0.00017655,2]
[351914372,1738840237972,-564.58187545,0.00017655,2]
[351914373,1738840237983,-1165.4437912,0.00017782,2]
[351914374,1738840238011,-3659.8462088,0.00017782,2]
[351914375,1738840238020,-662.1,0.00017938,30]
[351914376,1738840238030,-166.24,0.00017941,2]
[351914377,1738840238039,-454.0,0.00017957,2]
[351914378,1738840238049,-171.66,0.00017964,2]
[351914379,1738840238058,-704.29,0.00017977,2]
[351914380,1738840238068,-150.00000001,0.00018,2]
[351914381,1738840238077,-294.02752549,0.00018028,2]
[351914382,1738840238093,-705.97247451,0.00018028,2]
[351914383,1738840238102,-707.2,0.00018082,2]
[351914384,1738840238112,-951.15,0.00018114,2]
[351914385,1738840238122,-300.0,0.00018505,2]
[351914386,1738840238131,-156.78,0.000186,2]
[351914387,1738840238141,-851.70702,0.00018688,7]
[351914388,1738840238151,-707.2,0.00018751,2]
[351914389,1738840238160,-851.70702,0.00018888,7]
[351914390,1738840238171,-2371.082,0.00018998,2]
[351914391,1738840238180,-275.63019918,0.00018998,2]
[351914392,1738840238190,-223.172,0.00018998,2]
[351914393,1738840238200,-500.003541,0.00019,2]
[351914394,1738840238212,-261.16295542,0.00019041,2]
[351914395,1738840238225,-500.0,0.00019041,2]
[351914396,1738840238237,-120.11704458,0.00019041,2]
[351914397,1738840238246,-851.70702,0.00019088,7]
[351914398,1738840238255,-11907.18,0.00019151,2]
[351914399,1738840238264,-2959.17469499,0.00019178,2]
[351914400,1738840238278,-727.95966854,0.00019178,2]
[351914557,1738840239992,-368.66,0.00017433,2]
[351914559,1738840240002,-312.86563647,0.00019178,2]
[351914561,1738840240011,-150.0,0.00019178,2]
[351914563,1738840240021,-150.0,0.00019178,2]
[351914565,1738840240031,-150.0,0.00019178,2]
[351914567,1738840240041,-65.66975456,0.00019178,2]
[351914575,1738840240109,-84.33024544,0.00019178,2]
[351914577,1738840240119,-150.0,0.00019178,2]
[351914579,1738840240128,-430.404555,0.00019182,2]
[351914581,1738840240138,-1700.0,0.000192,7]
[351914583,1738840240147,-330.26,0.0001926,2]
[351914585,1738840240158,-1549.38,0.0001926,2]
[351914587,1738840240169,-851.70702,0.00019288,7]
[351914589,1738840240180,-3500.0,0.000193,7]
[351914591,1738840240189,-5300.0,0.000194,7]
[351914593,1738840240200,-707.2,0.0001942,2]
[351914595,1738840240210,-851.70702,0.00019488,7]
[351914597,1738840240219,-7100.0,0.000195,7]
[351914599,1738840240229,-1297.19092358,0.00019542,2]
[351914601,1738840240239,-430.404555,0.00019567,2]
[351914603,1738840240249,-3349.9029997,0.00019599,2]
[351914605,1738840240259,-1006.38437089,0.000196,2]
[351914607,1738840240269,-500.0,0.000196,30]
[351914609,1738840240278,-281.72073923,0.000196,30]
[351914611,1738840240287,-1047.59390783,0.000196,2]
[351914613,1738840240296,-1003.23691868,0.000196,2]
[351914614,1738840240306,-1200.10763312,0.000196,2]
[351914616,1738840240315,-8900.0,0.000196,7]
[351914618,1738840240324,-1501.0,0.00019609,2]
[351914621,1738840240334,-150.0,0.00019683,2]
[351914623,1738840240344,-1000.0,0.000197,2]
[351914625,1738840240355,-1700.0,0.000197,7]
[351914627,1738840240364,-3000.0,0.0001978,2]
[351914629,1738840240373,-1200.0,0.0001978,2]
[351914631,1738840240383,-1700.0,0.000198,7]
[351914633,1738840240392,-1501.0,0.00019811,2]
[351914635,1738840240401,-430.4045551,0.0001983,2]
[351914637,1738840240411,-500.0,0.0001984,2]
[351914639,1738840240421,-1010.00179142,0.00019865,2]
[351914641,1738840240430,-1010.00179142,0.00019871,2]
[351914643,1738840240440,-300.0,0.00019875,2]
[351914645,1738840240449,-150.0,0.00019879,2]
[351914647,1738840240460,-79530.04607931,0.00019879,2]
[351914649,1738840240469,-1000.0,0.00019886,2]
[351914651,1738840240478,-851.70702,0.00019888,7]
[351914653,1738840240488,-2692.87,0.0001989,2]
[351914655,1738840240499,-2692.87,0.0001989,2]
[351914657,1738840240510,-2692.87,0.0001989,2]
[351914659,1738840240519,-2692.87,0.0001989,2]
[351914661,1738840240529,-2692.87,0.0001989,2]
[351914663,1738840240539,-2692.87,0.0001989,2]
[351914665,1738840240548,-2692.87,0.0001989,2]
[351914667,1738840240557,-2692.87,0.0001989,2]
[351914669,1738840240567,-2692.87,0.0001989,2]
[351914671,1738840240576,-2692.87,0.0001989,2]
[351914673,1738840240585,-2692.87,0.0001989,2]
[351914675,1738840240595,-2692.87,0.0001989,2]
[351914677,1738840240603,-2692.87,0.0001989,2]
[351914679,1738840240612,-2692.87,0.0001989,2]
[351914681,1738840240621,-2692.87,0.0001989,2]
[351914683,1738840240631,-2692.87,0.0001989,2]
[351914685,1738840240639,-2692.87,0.0001989,2]
[351914687,1738840240649,-2692.87,0.0001989,2]
[351914688,1738840240658,-2692.87,0.0001989,2]
[351914690,1738840240667,-2692.87,0.0001989,2]
[351914692,1738840240677,-2692.87,0.0001989,2]
[351914695,1738840240687,-2692.87,0.0001989,2]
[351914696,1738840240696,-2692.87,0.0001989,2]
[351914698,1738840240706,-2692.89960721,0.0001989,2]
[351914700,1738840240716,-368.83,0.00019891,2]
[351914703,1738840240725,-1876.51182075,0.00019894,2]
[351914705,1738840240735,-1876.51182075,0.00019895,2]
[351914707,1738840240744,-2589.1371352,0.00019899,2]
[351914708,1738840240753,-1000.0,0.000199,5]
[351914711,1738840240763,-1000.0,0.000199,5]
[351914713,1738840240772,-1700.0,0.000199,7]
[351914714,1738840240782,-258.94388264,0.000199,2]
[351914716,1738840240797,-258.94388264,0.000199,2]
[351914718,1738840240807,-258.94388264,0.000199,2]
[351914720,1738840240817,-258.94388264,0.000199,2]
[351914722,1738840240827,-258.94388264,0.000199,2]
[351914724,1738840240840,-258.94388264,0.000199,2]
[351914726,1738840240850,-258.94388264,0.000199,2]
[351914728,1738840240860,-258.94388264,0.000199,2]
[351914730,1738840240870,-258.94388264,0.000199,2]
[351914732,1738840240880,-258.94388264,0.000199,2]
[351914734,1738840240889,-258.94388264,0.000199,2]
[351914736,1738840240899,-258.94388264,0.000199,2]
[351914738,1738840240909,-258.94388264,0.000199,2]
[351914740,1738840240918,-258.94388264,0.000199,2]
[351914742,1738840240927,-258.94388264,0.000199,2]
[351914744,1738840240937,-258.94388264,0.000199,2]
[351914746,1738840240947,-258.94388264,0.000199,2]
[351914748,1738840240956,-258.94388264,0.000199,2]
[351914750,1738840240965,-258.94388264,0.000199,2]
[351914752,1738840240975,-258.94,0.000199,2]
[351914754,1738840240985,-1890.0,0.000199,2]
[351914756,1738840240994,-259.73191532,0.000199,2]
[351914758,1738840241003,-259.73191532,0.000199,2]
[351914760,1738840241013,-259.73191532,0.000199,2]
[351914762,1738840241023,-259.73191532,0.000199,2]
[351914764,1738840241033,-259.73191532,0.000199,2]
[351914766,1738840241043,-259.73191532,0.000199,2]
[351914768,1738840241052,-259.73191532,0.000199,2]
[351914770,1738840241061,-259.73191532,0.000199,2]
[351914772,1738840241071,-259.73191532,0.000199,2]
[351914774,1738840241080,-259.73191532,0.000199,2]
[351914776,1738840241090,-259.73191532,0.000199,2]
[351914778,1738840241099,-259.73191532,0.000199,2]
[351914780,1738840241109,-259.73191532,0.000199,2]
[351914782,1738840241119,-259.73191532,0.000199,2]
[351914784,1738840241128,-259.73191532,0.000199,2]
[351914786,1738840241139,-259.73191532,0.000199,2]
[351914788,1738840241148,-259.73191532,0.000199,2]
[351914790,1738840241158,-259.73191532,0.000199,2]
[351914792,1738840241167,-259.73191532,0.000199,2]
[351914794,1738840241176,-259.73,0.000199,2]
[351914796,1738840241185,-300.64266234,0.000199,2]
[351914798,1738840241195,-300.64266234,0.000199,2]
[351914800,1738840241205,-300.64266234,0.000199,2]
[351914822,1738840241406,-300.64266234,0.000199,2]
[351914825,1738840241417,-300.64266234,0.000199,2]
[351914827,1738840241428,-300.64266234,0.000199,2]
[351914829,1738840241437,-300.64266234,0.000199,2]
[351914831,1738840241447,-300.64266234,0.000199,2]
[351914833,1738840241456,-300.64266234,0.000199,2]
[351914835,1738840241465,-300.64266234,0.000199,2]
[351914837,1738840241474,-300.64266234,0.000199,2]
[351914839,1738840241484,-300.64266234,0.000199,2]
[351914841,1738840241493,-300.64266234,0.000199,2]
[351914843,1738840241502,-300.64266234,0.000199,2]
[351914844,1738840241512,-300.64266234,0.000199,2]
[351914847,1738840241522,-300.64266234,0.000199,2]
[351914848,1738840241531,-300.64266234,0.000199,2]
[351914851,1738840241541,-300.64266234,0.000199,2]
[351914853,1738840241551,-300.64266234,0.000199,2]
[351914854,1738840241561,-300.64,0.000199,2]
[351914856,1738840241571,-5196.63100206,0.000199,2]
[351914858,1738840241580,-706.76,0.00019919,2]
[351914860,1738840241590,-150.0,0.00019925,2]
[351914863,1738840241600,-1010.00179142,0.00019932,2]
[351914865,1738840241610,-1876.51182075,0.00019958,2]
[351914866,1738840241619,-150.0,0.00019975,2]
[351914868,1738840241629,-1876.51182075,0.00019978,2]
[351914871,1738840241639,-1010.00179142,0.00019989,2]
[351914873,1738840241648,-255774.89526492,0.00019995,5]
[351914875,1738840241662,-9878.62767785,0.00019995,5]
[351914877,1738840241673,-418.54789703,0.00019995,5]
[351914880,1738840241685,-667.37843438,0.00019995,5]
[351914882,1738840241697,-1898.39,0.00019995,5]
[351914884,1738840241709,-45323.1441672,0.00019995,5]
[351914887,1738840241729,-15189.06000256,0.00019995,5]
[351914889,1738840241741,-10230.81991016,0.00019995,5]
[351914891,1738840241752,-6745.56485622,0.00019995,5]
[351914894,1738840241764,-2407.15091,0.00019995,5]
[351914896,1738840241775,-2887.7680947,0.00019995,5]
[351914899,1738840241795,-270.00005,0.00019995,5]
[351914901,1738840241807,-55000.02552076,0.00019995,5]
[351914904,1738840241829,-1100.46018748,0.00019995,5]
[351914906,1738840241840,-198953.9859981,0.00019995,5]
[351914908,1738840241851,-530.69259837,0.00019995,5]
[351915082,1738840243539,-485431.80364437,0.00019995,5]
[351915084,1738840243549,-1248.36589689,0.00019998,5]
[351915086,1738840243558,-57125.78037647,0.00019998,10]
[351915088,1738840243568,-177095.33380161,0.00019999,2]
[351915090,1738840243578,-1013.82,0.00019999,2]
[351915092,1738840243588,-507.7,0.00019999,2]
[351915094,1738840243597,-507.7,0.00019999,2]
[351915096,1738840243607,-839.0,0.0002,2]
[351915098,1738840243616,-266.88630886,0.0002,2]
[351915100,1738840243625,-63757.38055733,0.0002,2]
[351915102,1738840243634,-226783.02350725,0.0002,2]
[351915104,1738840243646,-2599.444995,0.0002,2]
[351915107,1738840243658,-17207.73717639,0.0002,2]
[351915110,1738840243677,-3851.88067642,0.0002,2]
[351915125,1738840243829,-59183.4,0.0002,2]
[351915339,1738840246104,-70965.25787545,0.0002,2]
[351915350,1738840246224,-2917.48794505,0.0002,2]
[351915357,1738840246290,-758.0,0.00019995,2]
[351915358,1738840246299,-4175.7,0.0002,2]
[351915372,1738840246458,-459.08168441,0.0002,2]
[351915375,1738840246471,-1333.25,0.0002,2]
[351915536,1738840325924,304.479,8.973e-05,2]
[351915537,1738840349771,3329.8009,8.973e-05,2]
[351915538,1738840358762,15180.4893,8.836e-05,2]
[351915579,1738841432208,-5415.721201,9.83e-05,2]
[351915581,1738841432219,-300.0,9.88e-05,2]
[351915583,1738841432230,-150.64827,9.881e-05,2]
[351915585,1738841432240,-152.332742,9.881e-05,2]
[351915586,1738841432250,-167.665503,9.881e-05,2]
[351915587,1738841432261,-164.082133,9.881e-05,2]
[351915588,1738841432271,-2540.37336073,9.881e-05,2]
[351915589,1738841432281,-33741.04441198,9.881e-05,2]
[351915590,1738841432291,-150.0,9.999e-05,2]
[351915591,1738841432300,-41495.15887828,0.0001,2]
[351915592,1738841432309,-150.74,0.00010137,2]
[351915593,1738841432319,-150.64827,0.00010155,2]
[351915594,1738841432329,-152.332742,0.00010155,2]
[351915595,1738841432339,-150.64827,0.00010429,2]
[351915596,1738841432348,-152.332742,0.00010429,2]
[351915597,1738841432358,-150.64827,0.00010703,2]
[351915598,1738841432367,-152.332742,0.00010703,2]
[351915599,1738841432377,-150.64827,0.00010977,2]
[351915600,1738841432386,-152.332742,0.00010977,2]
[351915601,1738841432395,-167.665503,0.00011114,2]
[351915602,1738841432406,-164.082133,0.00011114,2]
[351915603,1738841432415,-150.64827,0.00011388,2]
[351915604,1738841432425,-152.332742,0.00011388,2]
[351915605,1738841432434,-9519.20873445,0.00012554,2]
[351915606,1738841432444,-550.0,0.00013,2]
[351915607,1738841432453,-600.0,0.00015,2]
[351915608,1738841432462,-1000.0,0.00015777,2]
[351915609,1738841432472,-700.75,0.00015791,2]
[351915610,1738841432481,-348.34,0.00015903,2]
[351915611,1738841432490,-1382.02,0.00016009,2]
[351915612,1738841432500,-472.63,0.00016324,2]
[351915613,1738841432509,-628.99,0.00016658,30]
[351915614,1738841432519,-1896.865,0.00016732,2]
[351915615,1738841432528,-1305.58223612,0.00016821,2]
[351915616,1738841432538,-650.0,0.00017,2]
[351915617,1738841432548,-15278.8,0.00017314,2]
[351915618,1738841432557,-370.07197677,0.00017436,2]
[351915619,1738841432741,-150.74,0.00017599,2]
[351915620,1738841432752,-200.0,0.00017725,2]
[351915621,1738841432763,-250.0,0.00017747,2]
[351915622,1738841432773,-1000.0,0.00017749,2]
[351915623,1738841432782,-150.25,0.00017753,2]
[351915624,1738841432791,-200.0,0.00017756,2]
[351915625,1738841432800,-405.08235404,0.00017891,2]
[351915626,1738841432809,-4656.0,0.00018,3]
[351915627,1738841432818,-700.75,0.00018055,2]
[351915628,1738841432827,-164.22,0.00018057,2]
[351915629,1738841432837,-282.88,0.00018082,2]
[351915630,1738841432847,-500.0,0.00018165,2]
[351915631,1738841432856,-745.74,0.00018173,2]
[351915632,1738841432865,-1548.66,0.00018301,2]
[351915633,1738841432874,-174.57,0.00018302,2]
[351915634,1738841432883,-472.63,0.00018364,2]
[351915635,1738841432893,-153.0,0.00018467,2]
[351915636,1738841432902,-153.0,0.00018467,2]
[351915637,1738841432911,-153.0,0.00018467,2]
[351915638,1738841432921,-153.0,0.00018467,2]
[351915639,1738841432930,-156.78,0.000186,2]
[351915640,1738841432939,-300.0,0.0001865,2]
[351915641,1738841432948,-282.88,0.00018751,2]
[351915642,1738841432957,-47262.57435471,0.00019,5]
[351915643,1738841432967,-700.0,0.00019,2]
[351915644,1738841432976,-91033.05099867,0.00019,2]
[351915645,1738841432985,-17552.29102101,0.00019,3]
[351915646,1738841432994,-7595.34372464,0.00019,2]
[351915647,1738841433003,-961.61,0.00019,2]
[351915648,1738841433012,-10336.49354527,0.00019,2]
[351915649,1738841433022,-15205.48730235,0.00019,2]
[351915650,1738841433031,-340.71636185,0.0001901,7]
[351915651,1738841433040,-1000.0,0.0001902,2]
[351915652,1738841433050,-500.0,0.00019036,2]
[351915653,1738841433059,-5072.51920319,0.0001911,2]
[351915654,1738841433068,-150.0,0.00019178,2]
[351915655,1738841433077,-628.99,0.00019242,30]
[351915656,1738841433086,-192.37,0.0001926,2]
[351915657,1738841433096,-150.82,0.0001926,2]